fUSD/lending_fUSD_20240125
["ID","MTS","AMOUNT","RATE_DAILY","PERIOD"]
[312663620,1706141498146,-5000.0,0.00050684,14]
[312663621,1706141498162,-500.0,0.00050684,31]
[312663622,1706141498178,-500.0,0.00050684,31]
[312663623,1706141498193,-1451.54,0.00050684,31]
[312663624,1706141498209,-500.0,0.00050684,31]
[312663625,1706141498225,-764.66,0.00050684,31]
[312663626,1706141498241,-673.27,0.00050684,31]
[312663627,1706141498257,-1105.43,0.00050684,31]
[312663628,1706141498273,-3144.18,0.00050684,31]
[312663629,1706141498288,-500.0,0.00050684,31]
[312663630,1706141498307,-500.0,0.00050684,31]
[312663631,1706141498323,-342.19605986,0.00050684,31]
[312663632,1706141498339,-748.16,0.00050684,31]
[312663633,1706141498353,-678.69,0.00050684,31]
[312663634,1706141498370,-500.0,0.00050684,120]
[312663635,1706141498386,-500.0,0.00050684,31]
[312663636,1706141498401,-548.31,0.00050684,31]
[312663637,1706141498416,-532.81,0.00050684,31]
[312663638,1706141498430,-500.0,0.00050684,31]
[312663639,1706141498446,-515.5,0.00050684,31]
[312663640,1706141498461,-792.67,0.00050684,31]
[312663641,1706141498477,-500.0,0.00050684,31]
[312663642,1706141498492,-500.0,0.00050684,31]
[312663643,1706141498507,-1247.69,0.00050684,31]
[312663644,1706141498522,-612.72,0.00050684,31]
[312663645,1706141498536,-1295.4,0.00050684,31]
[312663646,1706141498551,-820.44,0.00050684,31]
[312663647,1706141498565,-500.0,0.00050684,31]
[312663648,1706141498581,-939.98,0.00050684,31]
[312663649,1706141498596,-689.9,0.00050684,31]
[312663650,1706141498610,-500.0,0.00050684,31]
[312663651,1706141498626,-500.0,0.00050684,31]
[312663652,1706141498640,-650.74,0.00050684,31]
[312663653,1706141498655,-3710.41,0.00050684,31]
[312663654,1706141498670,-594.93,0.00050684,2]
[312663655,1706141498685,-646.07,0.00050684,31]
[312663656,1706141498700,-500.0,0.00050684,31]
[312663657,1706141498715,-500.0,0.00050684,31]
[312663658,1706141498729,-500.0,0.00050684,31]
[312663659,1706141498744,-2728.94,0.00050684,31]
[312663660,1706141498760,-1281.32,0.00050684,31]
[312663661,1706141498775,-1822.59,0.00050684,2]
[312663662,1706141498790,-500.0,0.00050684,31]
[312663663,1706141498804,-500.0,0.00050684,31]
[312663664,1706141498819,-500.0,0.00050684,31]
[312663665,1706141498833,-500.0,0.00050684,31]
[312663666,1706141498847,-500.0,0.00050684,31]
[312663667,1706141498863,-500.0,0.00050684,31]
[312663668,1706141498878,-1129.79,0.00050684,31]
[312663669,1706141498892,-724.18,0.00050684,31]
[312663670,1706141498907,-605.74,0.00050684,31]
[312663671,1706141498921,-500.0,0.00050684,31]
[312663672,1706141498935,-500.0,0.00050684,31]
[312663673,1706141498949,-300.0,0.00050684,31]
[312663674,1706141498963,-824.96,0.00050684,31]
[312663675,1706141498978,-887.42,0.00050684,31]
[312663676,1706141498992,-500.0,0.00050684,31]
[312663677,1706141499007,-495.45007572,0.00050684,31]
[312663678,1706141499021,-500.0,0.00050684,31]
[312663679,1706141499036,-866.53,0.00050684,31]
[312663680,1706141499051,-510.96,0.00050684,31]
[312663681,1706141499066,-757.86,0.00050684,2]
[312663682,1706141499081,-500.0,0.00050684,31]
[312663683,1706141499100,-500.0,0.00050684,31]
[312663684,1706141499114,-500.0,0.00050684,31]
[312663685,1706141499128,-887.79,0.00050684,31]
[312663686,1706141499142,-566.99,0.00050684,31]
[312663687,1706141499157,-500.0,0.00050684,31]
[312663688,1706141499171,-2100.00771055,0.00050687,7]
[312663689,1706141499185,-432.40353136,0.00050699,60]
[312663690,1706141499200,-152.74,0.000507,6]
[312663691,1706141499215,-152.74,0.000507,6]
[312663692,1706141499229,-152.74,0.000507,6]
[312663693,1706141499243,-152.74,0.000507,6]
[312663694,1706141499258,-152.74,0.000507,6]
[312663695,1706141499273,-152.74,0.000507,6]
[312663696,1706141499288,-152.74,0.000507,6]
[312663697,1706141499304,-158.14,0.000507,4]
[312663698,1706141499320,-158.14,0.000507,4]
[312663699,1706141499334,-158.14,0.000507,4]
[312663700,1706141499349,-158.14,0.000507,4]
[312663701,1706141499364,-158.14,0.000507,4]
[312663702,1706141499379,-365.39,0.000507,6]
[312663703,1706141499393,-365.39,0.000507,6]
[312663704,1706141499408,-365.39,0.000507,6]
[312663705,1706141499423,-365.39,0.000507,6]
[312663706,1706141499437,-365.39,0.000507,6]
[312663707,1706141499452,-365.39,0.000507,6]
[312663708,1706141499468,-365.39,0.000507,6]
[312663709,1706141499482,-365.39,0.000507,6]
[312663710,1706141499497,-365.39,0.000507,6]
[312663711,1706141499512,-365.39,0.000507,6]
[312663712,1706141499527,-365.39,0.000507,6]
[312663713,1706141499543,-365.39,0.000507,6]
[312663714,1706141499557,-365.39,0.000507,6]
[312663715,1706141499573,-365.39,0.000507,6]
[312663716,1706141499587,-365.39,0.000507,6]
[312663717,1706141499602,-365.39,0.000507,6]
[312663718,1706141499618,-365.39,0.000507,6]
[312663719,1706141499630,-365.39,0.000507,6]
[312663720,1706141499640,-365.39,0.000507,6]
[312663721,1706141499649,-365.39,0.000507,6]
[312663722,1706141499659,-153.87365434,0.00050706,60]
[312663723,1706141499667,-158.39181887,0.00050716,60]
[312663724,1706141499677,-432.40353136,0.00050719,60]
[312663725,1706141499686,-153.78758588,0.00050748,60]
[312663726,1706141499695,-158.45724665,0.0005077,60]
[312663727,1706141499704,-647.69,0.00050794,120]
[312663728,1706141499713,-171.44889507,0.0005084,60]
[312663729,1706141499723,-1463.20744382,0.00050858,60]
[312663730,1706141499732,-204.0,0.00050879,40]
[312663731,1706141499741,-131613.95495673,0.0005089,14]
[312663732,1706141499751,-198.0,0.0005089,2]
[312663733,1706141499760,-171.0,0.0005089,2]
[312663734,1706141500128,-166.32,0.000509,7]
[312663735,1706141500165,-10414.48682727,0.000509,9]
[312663736,1706141500186,-100283.10409526,0.000509,35]
[312663737,1706141500195,-1790.05085,0.000509,26]
[312663738,1706141500205,-210.0,0.000509,40]
[312663739,1706141500214,-300.0,0.000509,18]
[312663740,1706141500223,-155.25098285,0.00050934,60]
[312663741,1706141500232,-162.64199962,0.0005094,60]
[312663742,1706141500241,-176.58520058,0.00050946,60]
[312663743,1706141500251,-500.0,0.00050958,31]
[312663744,1706141500260,-500.0,0.00050958,31]
[312663745,1706141500269,-500.0,0.00050958,31]
[312663746,1706141500278,-353.88457745,0.00050958,31]
[312663747,1706141500288,-322.26139881,0.00050958,31]
[312663748,1706141500300,-500.0,0.00050958,31]
[312663749,1706141500309,-500.0,0.00050958,31]
[312663750,1706141500319,-571.87,0.00050958,31]
[312663751,1706141500331,-500.0,0.00050958,31]
[312663752,1706141500340,-500.0,0.00050958,31]
[312663753,1706141500350,-500.0,0.00050958,31]
[312663754,1706141500359,-500.0,0.00050958,31]
[312663755,1706141500369,-500.0,0.00050958,31]
[312663756,1706141500378,-500.0,0.00050958,31]
[312663757,1706141500388,-500.0,0.00050958,31]
[312663758,1706141500397,-500.0,0.00050958,31]
[312663759,1706141500406,-500.0,0.00050958,31]
[312663760,1706141500415,-500.0,0.00050958,31]
[312663761,1706141500424,-500.0,0.00050958,31]
[312663762,1706141500433,-500.0,0.00050958,31]
[312663763,1706141500443,-500.0,0.00050958,31]
[312663764,1706141500453,-545.99256738,0.00050958,31]
[312663765,1706141500463,-500.0,0.00050958,31]
[312663766,1706141500472,-500.0,0.00050958,31]
[312663767,1706141500482,-500.0,0.00050958,31]
[312663768,1706141500491,-500.0,0.00050958,31]
[312663769,1706141500501,-250.0,0.00050958,31]
[312663770,1706141500510,-500.0,0.00050958,31]
[312663771,1706141500520,-500.0,0.00050958,31]
[312663772,1706141500529,-500.0,0.00050958,31]
[312663773,1706141500538,-500.0,0.00050958,31]
[312663774,1706141500547,-500.0,0.00050958,31]
[312663775,1706141500557,-500.0,0.00050958,31]
[312663776,1706141500566,-500.0,0.00050958,31]
[312663777,1706141500578,-500.0,0.00050958,31]
[312663778,1706141500587,-500.0,0.00050958,31]
[312663779,1706141500596,-500.0,0.00050958,31]
[312663780,1706141500605,-500.0,0.00050958,31]
[312663781,1706141500615,-500.0,0.00050958,31]
[312663782,1706141500624,-569.3,0.00050958,31]
[312663783,1706141500634,-547.01,0.00050958,31]
[312663784,1706141500643,-500.0,0.00050958,31]
[312663785,1706141500652,-500.0,0.00050958,31]
[312663786,1706141500661,-500.0,0.00050958,31]
[312663787,1706141500670,-500.0,0.00050958,31]
[312663788,1706141500679,-510.64,0.00050958,31]
[312663789,1706141500688,-500.0,0.00050958,31]
[312663790,1706141500698,-1000.0,0.00050958,7]
[312663791,1706141500707,-500.0,0.00050958,10]
[312663792,1706141500716,-500.0,0.00050958,31]
[312663793,1706141500725,-500.0,0.00050958,31]
[312663794,1706141500734,-500.0,0.00050958,31]
[312663795,1706141500743,-500.0,0.00050958,31]
[312663796,1706141500752,-500.0,0.00050958,31]
[312663797,1706141500761,-500.0,0.00050958,31]
[312663798,1706141500770,-754.82,0.00050958,31]
[312663799,1706141500779,-500.0,0.00050958,31]
[312663800,1706141500788,-500.0,0.00050958,31]
[312663801,1706141500798,-500.0,0.00050958,31]
[312663802,1706141500807,-917.61,0.00050958,31]
[312663803,1706141500817,-500.0,0.00050958,31]
[312663804,1706141500828,-500.0,0.00050958,2]
[312663805,1706141500837,-500.0,0.00050958,31]
[312663806,1706141500846,-500.0,0.00050958,31]
[312663807,1706141500855,-665.93,0.00050958,31]
[312663808,1706141500864,-500.0,0.00050958,31]
[312663809,1706141500873,-702.69,0.00050958,31]
[312663810,1706141500882,-500.0,0.00050958,31]
[312663811,1706141500891,-500.0,0.00050958,31]
[312663812,1706141500900,-500.0,0.00050958,31]
[312663813,1706141500909,-619.19,0.00050958,31]
[312663814,1706141500918,-953.39,0.00050958,31]
[312663815,1706141500928,-500.0,0.00050958,2]
[312663816,1706141500938,-500.0,0.00050958,31]
[312663817,1706141500947,-500.0,0.00050958,31]
[312663818,1706141500956,-500.0,0.00050958,31]
[312663819,1706141500965,-500.0,0.00050958,31]
[312663820,1706141500974,-500.0,0.00050958,31]
[312663821,1706141500984,-500.0,0.00050958,31]
[312663822,1706141500992,-500.0,0.00050958,31]
[312663823,1706141501002,-500.0,0.00050958,31]
[312663824,1706141501011,-500.0,0.00050958,31]
[312663825,1706141501020,-500.0,0.00050958,31]
[312663826,1706141501029,-500.0,0.00050958,31]
[312663827,1706141501038,-523.13,0.00050958,31]
[312663828,1706141501048,-500.0,0.00050958,31]
[312663829,1706141501058,-500.0,0.00050958,31]
[312663830,1706141501069,-500.0,0.00050958,31]
[312663831,1706141501078,-500.0,0.00050958,31]
[312663832,1706141501087,-500.0,0.00050958,31]
[312663833,1706141501096,-500.0,0.00050958,31]
[312663834,1706141501105,-500.0,0.00050958,31]
[312663835,1706141501114,-485.74437274,0.00050958,31]
[312663836,1706141501123,-539.3,0.00050958,31]
[312663837,1706141501132,-500.0,0.00050958,31]
[312663838,1706141501142,-500.0,0.00050958,31]
[312663839,1706141501151,-500.0,0.00050958,31]
[312663840,1706141501161,-500.0,0.00050958,31]
[312663841,1706141501170,-500.0,0.00050958,31]
[312663842,1706141501179,-500.0,0.00050958,31]
[312663843,1706141501188,-557.24,0.00050958,31]
[312663844,1706141501197,-500.0,0.00050958,31]
[312663845,1706141501206,-500.0,0.00050958,31]
[312663846,1706141501215,-500.0,0.00050958,31]
[312663847,1706141501224,-500.0,0.00050958,31]
[312663848,1706141501233,-500.0,0.00050958,31]
[312663849,1706141501242,-500.0,0.00050958,31]
[312663850,1706141501252,-500.0,0.00050958,31]
[312663851,1706141501261,-500.0,0.00050958,31]
[312663852,1706141501271,-500.0,0.00050958,31]
[312663853,1706141501284,-500.0,0.00050958,31]
[312663854,1706141501292,-647.2064542,0.00050958,31]
[312663855,1706141501302,-500.0,0.00050958,31]
[312663856,1706141501311,-596.67,0.00050958,31]
[312663857,1706141501320,-500.0,0.00050958,31]
[312663858,1706141501332,-500.0,0.00050958,31]
[312663859,1706141501341,-379.20914588,0.00050958,31]
[312663860,1706141501350,-500.0,0.00050958,31]
[312663861,1706141501360,-500.0,0.00050958,31]
[312663862,1706141501370,-476.45761077,0.00050958,31]
[312663863,1706141501381,-650.62,0.00050958,31]
[312663864,1706141501390,-530.57,0.00050958,31]
[312663865,1706141501399,-590.77,0.00050958,31]
[312663866,1706141501408,-500.0,0.00050958,31]
[312663867,1706141501417,-500.0,0.00050958,31]
[312663868,1706141501426,-500.0,0.00050958,31]
[312663869,1706141501435,-500.0,0.00050958,31]
[312663870,1706141501445,-500.0,0.00050958,31]
[312663871,1706141501454,-500.0,0.00050958,31]
[312663872,1706141501463,-529.72,0.00050958,31]
[312663873,1706141501472,-500.0,0.00050958,31]
[312663874,1706141501482,-537.66,0.00050958,31]
[312663875,1706141501491,-500.0,0.00050958,31]
[312663876,1706141501501,-500.0,0.00050958,31]
[312663877,1706141501510,-668.66,0.00050958,31]
[312663878,1706141501521,-500.0,0.00050958,31]
[312663879,1706141501531,-500.0,0.00050958,31]
[312663880,1706141501540,-500.0,0.00050958,31]
[312663881,1706141501549,-500.0,0.00050958,31]
[312663882,1706141501558,-992.14,0.00050958,120]
[312663883,1706141501567,-500.0,0.00050958,31]
[312663884,1706141501578,-500.0,0.00050958,31]
[312663885,1706141501587,-500.0,0.00050958,31]
[312663886,1706141501597,-502.97,0.00050958,31]
[312663887,1706141501606,-500.0,0.00050958,31]
[312663888,1706141501615,-500.0,0.00050958,31]
[312663889,1706141501625,-500.0,0.00050958,31]
[312663890,1706141501634,-500.0,0.00050958,31]
[312663891,1706141501643,-500.0,0.00050958,31]
[312663892,1706141501652,-500.0,0.00050958,31]
[312663893,1706141501661,-500.0,0.00050958,31]
[312663894,1706141501672,-500.0,0.00050958,31]
[312663895,1706141501682,-500.0,0.00050958,31]
[312663896,1706141501691,-500.0,0.00050958,31]
[312663897,1706141501700,-626.76,0.00050958,31]
[312663898,1706141501709,-500.0,0.00050958,31]
[312663899,1706141501718,-524.2,0.00050958,31]
[312663900,1706141501727,-500.0,0.00050958,31]
[312663901,1706141501736,-500.0,0.00050958,31]
[312663902,1706141501744,-500.0,0.00050958,31]
[312663903,1706141501753,-500.0,0.00050958,31]
[312663904,1706141501762,-500.0,0.00050958,31]
[312663905,1706141501771,-500.0,0.00050958,31]
[312663906,1706141501780,-697.72,0.00050958,2]
[312663907,1706141501790,-500.0,0.00050958,31]
[312663908,1706141501799,-500.0,0.00050958,31]
[312663909,1706141501809,-500.0,0.00050958,31]
[312663910,1706141501818,-500.0,0.00050958,31]
[312663911,1706141501828,-502.99,0.00050958,31]
[312663912,1706141501837,-500.0,0.00050958,31]
[312663913,1706141501847,-500.0,0.00050958,31]
[312663914,1706141501855,-500.0,0.00050958,31]
[312663915,1706141501864,-500.0,0.00050958,31]
[312663916,1706141501874,-500.0,0.00050958,31]
[312663917,1706141501883,-500.0,0.00050958,31]
[312663918,1706141501892,-500.0,0.00050958,31]
[312663919,1706141501901,-1084.63,0.00050958,31]
[312663920,1706141501910,-500.0,0.00050958,31]
[312663921,1706141501919,-500.0,0.00050958,31]
[312663922,1706141501928,-500.0,0.00050958,31]
[312663923,1706141501938,-332.44333406,0.00050958,31]
[312663924,1706141501947,-500.0,0.00050958,31]
[312663925,1706141501956,-500.0,0.00050958,31]
[312663926,1706141501966,-500.0,0.00050958,31]
[312663927,1706141501975,-500.0,0.00050958,31]
[312663928,1706141501984,-500.0,0.00050958,31]
[312663929,1706141501994,-500.0,0.00050958,31]
[312663930,1706141502003,-500.0,0.00050958,31]
[312663931,1706141502012,-500.0,0.00050958,31]
[312663932,1706141502022,-500.0,0.00050958,31]
[312663933,1706141502030,-500.0,0.00050958,31]
[312663934,1706141502039,-537.79125652,0.00050958,60]
[312663935,1706141502049,-500.0,0.00050958,31]
[312663936,1706141502058,-500.0,0.00050958,31]
[312663937,1706141502068,-500.0,0.00050958,31]
[312663938,1706141502078,-563.82,0.00050958,31]
[312663939,1706141502087,-566.84181796,0.00050958,31]
[312663940,1706141502096,-500.0,0.00050958,31]
[312663941,1706141502105,-500.0,0.00050958,31]
[312663942,1706141502114,-1246.63,0.00050958,7]
[312663943,1706141502123,-500.0,0.00050958,31]
[312663944,1706141502132,-500.0,0.00050958,31]
[312663945,1706141502142,-669.25,0.00050958,20]
[312663946,1706141502151,-500.0,0.00050958,31]
[312663947,1706141502160,-500.0,0.00050958,31]
[312663948,1706141502169,-500.0,0.00050958,31]
[312663949,1706141502179,-500.0,0.00050958,31]
[312663950,1706141502188,-500.0,0.00050958,31]
[312663951,1706141502197,-500.0,0.00050958,31]
[312663952,1706141502206,-500.0,0.00050958,31]
[312663953,1706141502215,-500.0,0.00050958,31]
[312663954,1706141502224,-500.0,0.00050958,31]
[312663955,1706141502233,-500.0,0.00050958,31]
[312663956,1706141502242,-500.0,0.00050958,31]
[312663957,1706141502252,-500.0,0.00050958,31]
[312663958,1706141502262,-500.0,0.00050958,31]
[312663959,1706141502273,-500.0,0.00050958,31]
[312663960,1706141502282,-500.0,0.00050958,31]
[312663961,1706141502292,-500.0,0.00050958,31]
[312663962,1706141502304,-500.0,0.00050958,31]
[312663963,1706141502313,-523.88,0.00050958,31]
[312663964,1706141502323,-500.0,0.00050958,31]
[312663965,1706141502335,-500.0,0.00050958,14]
[312663966,1706141502344,-500.0,0.00050958,31]
[312663967,1706141502354,-500.0,0.00050958,31]
[312663968,1706141502363,-500.0,0.00050958,31]
[312663969,1706141502373,-500.0,0.00050958,31]
[312663970,1706141502382,-244.23690601,0.00050958,31]
[312663971,1706141502393,-1157.14,0.00050958,31]
[312663972,1706141502402,-1233.91,0.00050958,7]
[312663973,1706141502411,-526.57,0.00050958,31]
[312663974,1706141502421,-500.0,0.00050958,31]
[312663975,1706141502430,-500.0,0.00050958,31]
[312663976,1706141502439,-500.0,0.00050958,31]
[312663977,1706141502449,-500.0,0.00050958,31]
[312663978,1706141502458,-500.0,0.00050958,31]
[312663979,1706141502469,-500.0,0.00050958,31]
[312663980,1706141502478,-500.0,0.00050958,31]
[312663981,1706141502487,-594.98,0.00050958,31]
[312663982,1706141502496,-500.0,0.00050958,31]
[312663983,1706141502505,-4118.15,0.00050958,15]
[312663984,1706141502515,-500.0,0.00050958,31]
[312663985,1706141502525,-500.0,0.00050958,31]
[312663986,1706141502534,-500.0,0.00050958,31]
[312663987,1706141502545,-500.0,0.00050958,31]
[312663988,1706141502555,-464.05109335,0.00050958,31]
[312663989,1706141502565,-621.48,0.00050958,31]
[312663990,1706141502578,-500.0,0.00050958,31]
[312663991,1706141502590,-500.0,0.00050958,31]
[312663992,1706141502599,-1968.51,0.00050958,31]
[312663993,1706141502609,-500.0,0.00050958,31]
[312663994,1706141502619,-500.0,0.00050958,31]
[312663995,1706141502630,-500.0,0.00050958,31]
[312663996,1706141502639,-500.0,0.00050958,31]
[312663997,1706141502650,-500.0,0.00050958,31]
[312663998,1706141502659,-500.0,0.00050958,31]
[312663999,1706141502668,-500.0,0.00050958,31]
[312664000,1706141502678,-937.73,0.00050958,2]
[312664001,1706141502688,-500.0,0.00050958,31]
[312664002,1706141502698,-500.0,0.00050958,31]
[312664003,1706141502707,-500.0,0.00050958,31]
[312664004,1706141502717,-500.0,0.00050958,31]
[312664005,1706141502726,-4141.1,0.00050958,31]
[312664006,1706141502736,-500.0,0.00050958,31]
[312664007,1706141502745,-500.0,0.00050958,31]
[312664008,1706141502754,-500.0,0.00050958,31]
[312664009,1706141502764,-500.0,0.00050958,31]
[312664010,1706141502773,-500.0,0.00050958,31]
[312664011,1706141502782,-500.0,0.00050958,31]
[312664012,1706141502791,-500.0,0.00050958,31]
[312664013,1706141502801,-500.0,0.00050958,31]
[312664014,1706141502810,-500.0,0.00050958,31]
[312664015,1706141502819,-500.0,0.00050958,31]
[312664016,1706141502832,-500.0,0.00050958,31]
[312664017,1706141502841,-728.06,0.00050958,31]
[312664018,1706141502850,-500.0,0.00050958,31]
[312664019,1706141502859,-500.0,0.00050958,31]
[312664020,1706141502868,-973.03,0.00050958,2]
[312664021,1706141502878,-500.0,0.00050958,31]
[312664022,1706141502887,-500.0,0.00050958,31]
[312664023,1706141502896,-500.0,0.00050958,31]
[312664024,1706141502906,-500.0,0.00050958,31]
[312664025,1706141502915,-500.0,0.00050958,31]
[312664026,1706141502925,-500.0,0.00050958,31]
[312664027,1706141502934,-1697.01,0.00050958,31]
[312664028,1706141502943,-500.0,0.00050958,31]
[312664029,1706141502952,-500.0,0.00050958,31]
[312664030,1706141502962,-500.0,0.00050958,31]
[312664031,1706141502971,-556.66,0.00050958,31]
[312664032,1706141502980,-500.0,0.00050958,31]
[312664033,1706141502989,-500.0,0.00050958,31]
[312664034,1706141502999,-681.8,0.00050958,31]
[312664035,1706141503009,-797.85,0.00050958,31]
[312664036,1706141503018,-500.0,0.00050958,31]
[312664037,1706141503028,-508.04,0.00050958,31]
[312664038,1706141503037,-500.0,0.00050958,31]
[312664039,1706141503046,-500.0,0.00050958,31]
[312664040,1706141503056,-500.0,0.00050958,31]
[312664041,1706141503065,-659.17,0.00050958,31]
[312664042,1706141503074,-500.0,0.00050958,31]
[312664043,1706141503086,-514.92,0.00050958,31]
[312664044,1706141503095,-520.3,0.00050958,31]
[312664045,1706141503104,-717.84,0.00050958,31]
[312664046,1706141503114,-1187.72,0.00050958,31]
[312664047,1706141503123,-500.0,0.00050958,31]
[312664048,1706141503132,-500.0,0.00050958,31]
[312664049,1706141503141,-563.62,0.00050958,31]
[312664050,1706141503151,-500.0,0.00050958,31]
[312664051,1706141503160,-203.82,0.00050958,31]
[312664052,1706141503169,-500.0,0.00050958,31]
[312664053,1706141503178,-1119.03,0.00050958,2]
[312664054,1706141503188,-1126.94,0.00050958,31]
[312664055,1706141503197,-551.67,0.00050958,31]
[312664056,1706141503206,-1035.65,0.00050958,31]
[312664057,1706141503216,-500.0,0.00050958,31]
[312664058,1706141503225,-738.6,0.00050958,31]
[312664059,1706141503234,-500.0,0.00050958,31]
[312664060,1706141503243,-1041.4,0.00050958,31]
[312664061,1706141503252,-500.0,0.00050958,31]
[312664062,1706141503262,-665.87,0.00050958,31]
[312664063,1706141503271,-500.0,0.00050958,31]
[312664064,1706141503282,-511.53,0.00050958,31]
[312664065,1706141503291,-500.0,0.00050958,31]
[312664066,1706141503302,-531.79,0.00050958,31]
[312664067,1706141503311,-693.29,0.00050958,31]
[312664068,1706141503509,-1258.54,0.00050958,31]
[312664069,1706141503553,-569.14,0.00050958,31]
[312664070,1706141503562,-500.0,0.00050958,31]
[312664071,1706141503572,-500.0,0.00050958,31]
[312664072,1706141503582,-500.0,0.00050958,31]
[312664073,1706141503591,-500.0,0.00050958,31]
[312664074,1706141503601,-523.57,0.00050958,31]
[312664075,1706141503610,-500.0,0.00050958,31]
[312664076,1706141503619,-3674.77,0.00050958,31]
[312664077,1706141503628,-3124.04,0.00050958,31]
[312664078,1706141503638,-1845.53,0.00050958,31]
[312664079,1706141503647,-698.55,0.00050958,31]
[312664080,1706141503657,-500.0,0.00050958,31]
[312664081,1706141503666,-500.0,0.00050958,31]
[312664082,1706141503675,-500.0,0.00050958,31]
[312664083,1706141503684,-3836.74,0.00050958,5]
[312664084,1706141503694,-500.0,0.00050958,31]
[312664085,1706141503703,-1206.46,0.00050958,31]
[312664086,1706141503712,-500.0,0.00050958,31]
[312664087,1706141503721,-1295.76,0.00050958,31]
[312664088,1706141503730,-500.0,0.00050958,31]
[312664089,1706141503739,-500.0,0.00050958,31]
[312664090,1706141503748,-500.0,0.00050958,31]
[312664091,1706141503758,-766.32,0.00050958,31]
[312664092,1706141503767,-500.0,0.00050958,31]
[312664093,1706141503777,-944.79,0.00050958,31]
[312664094,1706141503786,-585.71,0.00050958,31]
[312664095,1706141503796,-5283.49,0.00050958,5]
[312664096,1706141503805,-500.0,0.00050958,31]
[312664097,1706141503815,-500.0,0.00050958,31]
[312664098,1706141503824,-500.0,0.00050958,31]
[312664099,1706141503835,-718.1,0.00050958,31]
[312664100,1706141503844,-966.39,0.00050958,31]
[312664101,1706141503854,-1006.46,0.00050958,31]
[312664102,1706141503863,-517.29,0.00050958,31]
[312664103,1706141503873,-8715.7,0.00050958,31]
[312664104,1706141503882,-608.48,0.00050958,31]
[312664105,1706141503891,-567.82,0.00050958,31]
[312664106,1706141503901,-500.0,0.00050958,31]
[312664107,1706141503910,-500.0,0.00050958,31]
[312664108,1706141503919,-500.0,0.00050958,31]
[312664109,1706141503929,-5784.02,0.00050958,31]
[312664110,1706141503938,-500.0,0.00050958,31]
[312664111,1706141503948,-672.35,0.00050958,31]
[312664112,1706141503957,-719.02,0.00050958,31]
[312664113,1706141503967,-660.52,0.00050958,31]
[312664114,1706141503976,-571.27,0.00050958,31]
[312664115,1706141503986,-500.0,0.00050958,31]
[312664116,1706141503995,-681.13,0.00050958,31]
[312664117,1706141504005,-500.0,0.00050958,31]
[312664118,1706141504014,-500.0,0.00050958,31]
[312664119,1706141504024,-500.0,0.00050958,31]